fUST/lending_fUST_20250719
["ID","MTS","AMOUNT","RATE_DAILY","PERIOD"]
[373303421,1752936645546,-1500.0,0.00021936,2]
[373303423,1752936645556,-500.0,0.00021973,2]
[373303425,1752936645565,-13357.9,0.00022,7]
[373303427,1752936645575,-151.0,0.00022,7]
[373303429,1752936645584,-14265.76559619,0.00022,2]
[373303450,1752936645771,-3878.54986323,0.00016792,2]
[373303452,1752936645785,-1121.45013677,0.00016792,2]
[373303454,1752936645794,-9095.58066473,0.00022,2]
[373303457,1752936645814,-457.36933447,0.00022,2]
[373303459,1752936645825,-1814.73052509,0.00022,2]
[373303462,1752936645837,-20440.48813734,0.00022,2]
[373303464,1752936645849,-5143.27627293,0.00022,2]
[373303566,1752936647082,-5582.46248075,0.00022,2]
[373303567,1752936647093,-2994.00707873,0.00022,2]
[373304280,1752937011447,350.177898,0.00016246,2]
[373304289,1752937200506,410.422483,0.00013699,2]
[373304292,1752937348921,150.0,0.00015172,2]
[373304296,1752937531573,3176.3340317,0.00016133,2]
[373304297,1752937670872,150.0,0.00015172,2]
[373304298,1752937689083,150.0,0.0001652,2]
[373304299,1752937691403,54681.09079226,0.00016519,2]
[373304300,1752937734869,24900.0,0.00016132,2]
[373304301,1752937735214,5000.0,0.0001652,2]
[373304302,1752937735666,150.0,0.00015171,2]
[373304303,1752937751097,5000.0,0.0001652,2]
[373304304,1752937767235,5000.0,0.0001652,2]
[373304305,1752937775165,789.0,0.0001652,2]
[373304306,1752937801242,150.0,0.00015126,2]
[373304338,1752937832394,-215.45060764,0.00016618,2]
[373304340,1752937832406,-245.52035791,0.00016619,2]
[373304343,1752937832415,-137.19375386,0.00016619,2]
[373304345,1752937832427,-362.80624614,0.00016619,2]
[373304347,1752937832437,-159.42691186,0.00016619,2]
[373304349,1752937832446,-150.13578144,0.00016877,2]
[373304453,1752937838747,-85.82614656,0.00016877,2]
[373304454,1752937838758,-237.58324978,0.00017032,2]
[373304455,1752937838780,-159.94104444,0.00017032,2]
[373304456,1752937838790,-285.60587664,0.00017113,2]
[373304457,1752937838800,-300.0,0.0001713,2]
[373304458,1752937838810,-1200.0,0.0001713,2]
[373304459,1752937838820,-1200.0,0.00017131,2]
[373304460,1752937838830,-214.64909614,0.00017131,2]
[373304461,1752937838839,-460.0,0.00017131,2]
[373304462,1752937838849,-460.0,0.00017131,2]
[373304463,1752937838859,-460.0,0.00017131,2]
[373304464,1752937838869,-460.0,0.00017131,2]
[373304465,1752937838879,-1000.0,0.00017131,2]
[373304468,1752937839056,-460.0,0.00017131,2]
[373304469,1752937839066,-460.0,0.00017131,2]
[373304470,1752937839076,-460.0,0.00017131,2]
[373304471,1752937839086,-460.0,0.00017131,2]
[373304472,1752937839095,-460.0,0.00017131,2]
[373304473,1752937839105,-460.0,0.00017131,2]
[373304474,1752937839114,-150.64220546,0.00017131,2]
[373304475,1752937839124,-266.31743771,0.00017131,2]
[373304476,1752937839136,-193.68256229,0.00017131,2]
[373304477,1752937839146,-460.0,0.00017131,2]
[373304478,1752937839156,-460.0,0.00017131,2]
[373304479,1752937839166,-500.0,0.00017131,2]
[373304480,1752937839175,-500.0,0.00017131,2]
[373304481,1752937839185,-407.11387242,0.00017131,2]
[373304482,1752937839197,-52.88612758,0.00017131,2]
[373304483,1752937839206,-460.0,0.00017131,2]
[373304484,1752937839216,-460.0,0.00017131,2]
[373304485,1752937839225,-460.0,0.00017131,2]
[373304486,1752937839235,-260.05161896,0.00017131,2]
[373304487,1752937839246,-460.0,0.00017131,2]
[373304488,1752937839256,-460.0,0.00017131,2]
[373304489,1752937839268,-710.18,0.00017131,2]
[373304490,1752937839277,-460.0,0.00017132,2]
[373304491,1752937839288,-460.0,0.00017132,2]
[373304492,1752937839299,-460.0,0.00017132,2]
[373304493,1752937839309,-460.0,0.00017132,2]
[373304494,1752937839320,-460.0,0.00017132,2]
[373304495,1752937839330,-460.0,0.00017132,2]
[373304496,1752937839339,-460.0,0.00017132,2]
[373304497,1752937839350,-490.05866865,0.00017132,2]
[373304498,1752937839360,-460.0,0.00017132,2]
[373304499,1752937839371,-465.09298735,0.00017132,2]
[373304500,1752937839380,-460.0,0.00017132,2]
[373304501,1752937839390,-460.0,0.00017132,2]
[373304502,1752937839399,-462.67202119,0.00017132,2]
[373304503,1752937839410,-460.0,0.00017132,2]
[373304504,1752937839421,-460.0,0.00017132,2]
[373304505,1752937839430,-475.41428048,0.00017132,2]
[373304506,1752937839441,-460.0,0.00017132,2]
[373304507,1752937839451,-462.60736716,0.00017132,2]
[373304508,1752937839461,-460.0,0.00017132,2]
[373304509,1752937839472,-460.0,0.00017132,2]
[373304510,1752937839482,-460.0,0.00017132,2]
[373304511,1752937839491,-460.0,0.00017132,2]
[373304512,1752937839502,-460.0,0.00017132,2]
[373304513,1752937839511,-460.0,0.00017132,2]
[373304514,1752937839521,-463.23115986,0.00017132,2]
[373304515,1752937839530,-460.0,0.00017132,2]
[373304516,1752937839539,-460.0,0.00017132,2]
[373304517,1752937839549,-460.0,0.00017132,2]
[373304518,1752937839558,-460.0,0.00017132,2]
[373304519,1752937839569,-460.0,0.00017132,2]
[373304520,1752937839578,-1123.43,0.00017132,2]
[373304521,1752937839588,-460.0,0.00017132,2]
[373304522,1752937839597,-460.0,0.00017132,2]
[373304523,1752937839607,-465.94155733,0.00017132,2]
[373304524,1752937839621,-460.0,0.00017132,2]
[373304525,1752937839630,-460.0,0.00017132,2]
[373304526,1752937839640,-291.98680391,0.00017132,2]
[373304527,1752937839649,-460.0,0.00017132,2]
[373304528,1752937839661,-463.17519662,0.00017132,2]
[373304529,1752937839671,-500.0,0.00017132,2]
[373304530,1752937839681,-460.0,0.00017132,2]
[373304531,1752937839691,-460.0,0.00017132,2]
[373304532,1752937839700,-343.26621091,0.00017132,2]
[373304533,1752937839712,-116.73378909,0.00017132,2]
[373304534,1752937839722,-460.0,0.00017132,2]
[373304535,1752937839731,-460.0,0.00017132,2]
[373304536,1752937839741,-460.0,0.00017132,2]
[373304537,1752937839751,-460.0,0.00017132,2]
[373304538,1752937839760,-962.68,0.00017132,2]
[373304539,1752937839770,-460.0,0.00017132,2]
[373304540,1752937839780,-460.0,0.00017132,2]
[373304541,1752937839790,-460.0,0.00017132,2]
[373304542,1752937839799,-460.0,0.00017132,2]
[373304543,1752937839809,-460.0,0.00017132,2]
[373304544,1752937839818,-440.33663325,0.00017132,2]
[373304545,1752937839828,-973.11,0.00017132,2]
[373304546,1752937839837,-460.0,0.00017132,2]
[373304547,1752937839846,-460.0,0.00017132,2]
[373304548,1752937839856,-460.0,0.00017132,2]
[373304549,1752937839865,-685.5,0.00017132,2]
[373304550,1752937839875,-460.0,0.00017132,2]
[373304551,1752937839884,-460.0,0.00017132,2]
[373304552,1752937839894,-460.0,0.00017132,2]
[373304553,1752937839903,-460.0,0.00017132,2]
[373304554,1752937839914,-460.0,0.00017132,2]
[373304555,1752937839923,-460.0,0.00017132,2]
[373304556,1752937839933,-460.0,0.00017132,2]
[373304558,1752937839943,-460.0,0.00017132,2]
[373304559,1752937839952,-460.0,0.00017132,2]
[373304560,1752937839962,-460.0,0.00017132,2]
[373304561,1752937839971,-460.0,0.00017132,2]
[373304562,1752937839981,-460.0,0.00017132,2]
[373304564,1752937839991,-460.0,0.00017132,2]
[373304565,1752937840000,-460.0,0.00017132,2]
[373304566,1752937840010,-460.0,0.00017132,2]
[373304567,1752937840020,-460.0,0.00017132,2]
[373304568,1752937840029,-460.0,0.00017132,2]
[373304569,1752937840039,-460.0,0.00017132,2]
[373304570,1752937840048,-460.0,0.00017132,2]
[373304571,1752937840058,-500.0,0.00017132,2]
[373304572,1752937840067,-460.0,0.00017132,2]
[373304573,1752937840077,-460.0,0.00017132,2]
[373304574,1752937840087,-494.71,0.00017132,2]
[373304575,1752937840097,-460.0,0.00017132,2]
[373304576,1752937840107,-460.0,0.00017132,2]
[373304577,1752937840116,-460.0,0.00017132,2]
[373304578,1752937840126,-460.0,0.00017132,2]
[373304579,1752937840135,-460.0,0.00017132,2]
[373304580,1752937840145,-262.96757718,0.00017132,2]
[373304581,1752937840155,-460.0,0.00017132,2]
[373304582,1752937840167,-460.0,0.00017132,2]
[373304583,1752937840176,-460.0,0.00017132,2]
[373304584,1752937840186,-460.0,0.00017132,2]
[373304585,1752937840195,-460.0,0.00017132,2]
[373304586,1752937840205,-460.0,0.00017132,2]
[373304587,1752937840215,-460.0,0.00017132,2]
[373304588,1752937840224,-460.0,0.00017132,2]
[373304589,1752937840234,-460.0,0.00017132,2]
[373304590,1752937840243,-460.0,0.00017132,2]
[373304591,1752937840252,-460.0,0.00017133,2]
[373304592,1752937840262,-150.14370288,0.00017133,2]
[373304593,1752937840272,-460.0,0.00017133,2]
[373304594,1752937840282,-460.0,0.00017133,2]
[373304595,1752937840292,-460.0,0.00017133,2]
[373304596,1752937840302,-460.0,0.00017133,2]
[373304597,1752937840312,-460.0,0.00017133,2]
[373304598,1752937840321,-432.4,0.00017133,2]
[373304599,1752937840331,-460.0,0.00017133,2]
[373304600,1752937840341,-460.0,0.00017133,2]
[373304601,1752937840351,-468.11247826,0.00017133,2]
[373304602,1752937840360,-460.0,0.00017133,2]
[373304603,1752937840370,-460.0,0.00017133,2]
[373304604,1752937840379,-460.0,0.00017133,2]
[373304605,1752937840389,-460.0,0.00017133,2]
[373304606,1752937840398,-460.0,0.00017133,2]
[373304607,1752937840410,-460.0,0.00017133,2]
[373304608,1752937840420,-460.0,0.00017133,2]
[373304609,1752937840429,-414.24,0.00017133,2]
[373304610,1752937840439,-460.0,0.00017133,2]
[373304611,1752937840449,-462.56936851,0.00017133,2]
[373304612,1752937840458,-472.47,0.00017133,2]
[373304613,1752937840468,-463.75197737,0.00017133,2]
[373304614,1752937840478,-460.0,0.00017133,2]
[373304616,1752937840488,-465.07171616,0.00017133,2]
[373304618,1752937840497,-460.0,0.00017133,2]
[373304621,1752937840507,-199.68721591,0.00017133,2]
[373304622,1752937840517,-460.0,0.00017133,2]
[373304624,1752937840526,-465.77527968,0.00017133,2]
[373304625,1752937840536,-460.0,0.00017133,2]
[373304626,1752937840546,-460.0,0.00017133,2]
[373304627,1752937840556,-460.0,0.00017134,2]
[373304628,1752937840566,-355.88784711,0.00017134,2]
[373304629,1752937840575,-460.0,0.00017134,2]
[373304630,1752937840585,-460.0,0.00017134,2]
[373304631,1752937840595,-460.0,0.00017134,2]
[373304632,1752937840606,-462.52691973,0.00017134,2]
[373304633,1752937840619,-463.15845628,0.00017134,2]
[373304634,1752937840629,-460.0,0.00017134,2]
[373304635,1752937840638,-532.20481744,0.00017134,2]
[373304636,1752937840648,-461.48908098,0.00017134,2]
[373304638,1752937840659,-460.0,0.00017134,2]
[373304639,1752937840669,-464.3584912,0.00017134,2]
[373304640,1752937840679,-460.0,0.00017134,2]
[373304641,1752937840691,-500.0,0.00017134,2]
[373304642,1752937840702,-460.0,0.00017134,2]
[373304643,1752937840712,-460.0,0.00017134,2]
[373304644,1752937840722,-460.0,0.00017134,2]
[373304645,1752937840732,-460.0,0.00017134,2]
[373304646,1752937840741,-460.0,0.00017134,2]
[373304647,1752937840751,-460.0,0.00017134,2]
[373304648,1752937840760,-460.0,0.00017134,2]
[373304649,1752937840770,-460.0,0.00017134,2]
[373304650,1752937840780,-329.33150365,0.00017134,2]
[373304651,1752937840789,-460.0,0.00017134,2]
[373304652,1752937840798,-460.0,0.00017134,2]
[373304653,1752937840808,-500.0,0.00017134,2]
[373304654,1752937840817,-460.0,0.00017134,2]
[373304655,1752937840826,-500.0,0.00017308,2]
[373304656,1752937840836,-18546.35712902,0.00017309,2]
[373304657,1752937840845,-420.0,0.00017404,2]
[373304658,1752937840854,-460.0,0.00017405,2]
[373304659,1752937840863,-460.0,0.00017405,2]
[373304660,1752937840873,-460.0,0.00017405,2]
[373304661,1752937840883,-795.66029935,0.00017405,2]
[373304662,1752937840892,-460.0,0.00017405,2]
[373304663,1752937840901,-460.0,0.00017405,2]
[373304664,1752937840913,-460.0,0.00017405,2]
[373304665,1752937840922,-460.0,0.00017405,2]
[373304666,1752937840932,-460.0,0.00017405,2]
[373304667,1752937840942,-460.0,0.00017405,2]
[373304668,1752937840951,-460.0,0.00017405,2]
[373304669,1752937840960,-460.0,0.00017405,2]
[373304670,1752937840970,-710.18,0.00017405,2]
[373304671,1752937840979,-460.0,0.00017406,2]
[373304672,1752937840989,-464.60799574,0.00017406,2]
[373304673,1752937840999,-460.0,0.00017406,2]
[373304674,1752937841008,-460.20371342,0.00017406,2]
[373304675,1752937841017,-460.0,0.00017406,2]
[373304676,1752937841027,-423.46923713,0.00017406,2]
[373304677,1752937841036,-460.0,0.00017406,2]
[373304678,1752937841046,-1123.43,0.00017406,2]
[373304679,1752937841055,-1025.34,0.00017406,2]
[373304680,1752937841065,-460.0,0.00017406,2]
[373304681,1752937841075,-460.0,0.00017406,2]
[373304682,1752937841084,-460.0,0.00017406,2]
[373304683,1752937841094,-962.68,0.00017406,2]
[373304684,1752937841103,-460.0,0.00017406,2]
[373304685,1752937841113,-460.0,0.00017406,2]
[373304686,1752937841122,-460.0,0.00017406,2]
[373304687,1752937841132,-973.11,0.00017406,2]
[373304688,1752937841145,-685.5,0.00017406,2]
[373304689,1752937841155,-460.0,0.00017406,2]
[373304690,1752937841165,-460.0,0.00017406,2]
[373304691,1752937841174,-460.0,0.00017406,2]
[373304692,1752937841183,-460.0,0.00017406,2]
[373304693,1752937841193,-460.0,0.00017406,2]
[373304694,1752937841202,-460.0,0.00017406,2]
[373304695,1752937841212,-692.77,0.00017406,2]
[373304696,1752937841221,-460.0,0.00017406,2]
[373304697,1752937841230,-460.0,0.00017406,2]
[373304698,1752937841239,-471.9,0.00017406,2]
[373304699,1752937841248,-472.47,0.00017407,2]
[373304700,1752937841258,-460.0,0.00017679,2]
[373304701,1752937841267,-460.0,0.00017679,2]
[373304702,1752937841277,-460.0,0.00017679,2]
[373304703,1752937841286,-710.18,0.00017679,2]
[373304704,1752937841296,-259.33486079,0.0001768,2]
[373304705,1752937841306,-1123.43,0.0001768,2]
[373304706,1752937841315,-1025.34,0.0001768,2]
[373304707,1752937841325,-962.68,0.0001768,2]
[373304708,1752937841334,-460.0,0.0001768,2]
[373304709,1752937841344,-973.11,0.0001768,2]
[373304710,1752937841354,-685.5,0.0001768,2]
[373304711,1752937841363,-460.0,0.0001768,2]
[373304712,1752937841372,-460.0,0.0001768,2]
[373304713,1752937841381,-460.0,0.0001768,2]
[373304714,1752937841391,-460.0,0.0001768,2]
[373304715,1752937841400,-460.0,0.0001768,2]
[373304716,1752937841410,-460.0,0.0001768,2]
[373304717,1752937841420,-692.77,0.0001768,2]
[373304718,1752937841430,-471.9,0.0001768,2]
[373304719,1752937841439,-472.47,0.00017681,2]
[373304720,1752937841448,-800.0,0.00017776,2]
[373304721,1752937841457,-460.0,0.00017953,2]
[373304722,1752937841467,-460.0,0.00017953,2]
[373304723,1752937841476,-710.18,0.00017953,2]
[373304724,1752937841486,-1123.43,0.00017954,2]
[373304725,1752937841495,-1025.34,0.00017954,2]
[373304726,1752937841505,-962.68,0.00017954,2]
[373304727,1752937841514,-460.0,0.00017954,2]
[373304728,1752937841523,-973.11,0.00017954,2]
[373304729,1752937841532,-685.5,0.00017954,2]
[373304730,1752937841541,-460.0,0.00017954,2]
[373304731,1752937841549,-460.0,0.00017954,2]
[373304732,1752937841558,-460.0,0.00017954,2]
[373304733,1752937841566,-460.0,0.00017954,2]
[373304734,1752937841573,-460.0,0.00017954,2]
[373304735,1752937841583,-460.0,0.00017954,2]
[373304736,1752937841592,-692.77,0.00017954,2]
[373304737,1752937841602,-471.9,0.00017954,2]
[373304738,1752937841613,-472.47,0.00017955,2]
[373304739,1752937841623,-397.52429419,0.00018204,2]
[373304740,1752937841634,-460.0,0.00018227,2]
[373304741,1752937841643,-460.0,0.00018227,2]
[373304742,1752937841654,-710.18,0.00018227,2]
[373304743,1752937841665,-1123.43,0.00018228,2]
[373304744,1752937841675,-1025.34,0.00018228,2]
[373304745,1752937841684,-962.68,0.00018228,2]
[373304746,1752937841695,-460.0,0.00018228,2]
[373304747,1752937841704,-973.11,0.00018228,2]
[373304748,1752937841714,-685.5,0.00018228,2]
[373304749,1752937841723,-460.0,0.00018228,2]
[373304750,1752937841732,-460.0,0.00018228,2]
[373304751,1752937841742,-460.0,0.00018228,2]
[373304752,1752937841752,-460.0,0.00018228,2]
[373304753,1752937841761,-460.0,0.00018228,2]
[373304754,1752937841771,-692.77,0.00018228,2]
[373304755,1752937841781,-471.9,0.00018228,2]
[373304756,1752937841791,-472.47,0.00018229,2]
[373304757,1752937841800,-460.0,0.00018501,2]
[373304758,1752937841810,-460.0,0.00018501,2]
[373304759,1752937841819,-710.18,0.00018501,2]
[373304760,1752937841829,-1123.43,0.00018502,2]
[373304761,1752937841839,-1025.34,0.00018502,2]
[373304762,1752937841848,-962.68,0.00018502,2]
[373304763,1752937841858,-475.92213994,0.00018502,2]
[373304764,1752937841867,-973.11,0.00018502,2]
[373304765,1752937841877,-685.5,0.00018502,2]
[373304766,1752937841887,-460.0,0.00018502,2]
[373304767,1752937841897,-460.0,0.00018502,2]
[373304768,1752937841907,-460.0,0.00018502,2]
[373304769,1752937841917,-414.08694749,0.00018502,2]
[373304770,1752937841927,-460.0,0.00018502,2]
[373304771,1752937841937,-692.77,0.00018502,2]
[373304772,1752937841946,-471.9,0.00018502,2]
[373304773,1752937841956,-472.47,0.00018503,2]
[373304774,1752937841966,-420.0,0.00018707,2]
[373304775,1752937841976,-475.0,0.00018708,2]
[373304776,1752937841986,-228.8,0.00018719,3]
[373304777,1752937841996,-286.01,0.00018719,3]
[373304778,1752937842006,-858.05,0.00018719,3]
[373304779,1752937842015,-215.67360783,0.00018728,2]
[373304780,1752937842025,-160.0,0.00018728,2]
[373304781,1752937842035,-230.94145789,0.00018728,2]
[373304782,1752937842044,-160.0,0.00018728,2]
[373304783,1752937842053,-839.454303,0.00018728,2]
[373304784,1752937842063,-525.83049785,0.00018728,2]
[373304785,1752937842072,-214.52603969,0.00018728,2]
[373304786,1752937842082,-12612.80205064,0.00018729,2]
[373304787,1752937842092,-669.22,0.00018766,3]
[373304788,1752937842102,-460.0,0.00018775,2]
[373304789,1752937842112,-460.0,0.00018775,2]
[373304790,1752937842122,-710.18,0.00018775,2]
[373304791,1752937842132,-1123.43,0.00018776,2]
[373304792,1752937842141,-1025.34,0.00018776,2]
[373304793,1752937842151,-962.68,0.00018776,2]
[373304794,1752937842162,-973.11,0.00018776,2]
[373304795,1752937842172,-685.5,0.00018776,2]
[373304796,1752937842182,-460.0,0.00018776,2]
[373304797,1752937842191,-460.0,0.00018776,2]
[373304798,1752937842201,-460.0,0.00018776,2]
[373304799,1752937842211,-460.0,0.00018776,2]
[373304800,1752937842220,-692.77,0.00018776,2]
[373304801,1752937842230,-471.9,0.00018776,2]
[373304802,1752937842240,-472.47,0.00018777,2]
[373304803,1752937842249,-198.0,0.000188,2]
[373304804,1752937842259,-800.0,0.00018872,2]
[373304805,1752937842268,-709.17351774,0.000189,2]
[373304806,1752937842278,-4930.92456272,0.000189,2]
[373304807,1752937842288,-460.0,0.00019049,2]
[373304808,1752937842298,-460.0,0.00019049,2]
[373304809,1752937842308,-710.18,0.00019049,2]
[373304810,1752937842318,-1123.43,0.0001905,2]
[373304811,1752937842328,-1025.34,0.0001905,2]
[373304812,1752937842337,-962.68,0.0001905,2]
[373304813,1752937842347,-973.11,0.0001905,2]
[373304814,1752937842356,-685.5,0.0001905,2]
[373304815,1752937842366,-460.0,0.0001905,2]
[373304816,1752937842376,-460.0,0.0001905,2]
[373304817,1752937842386,-460.0,0.0001905,2]
[373304818,1752937842396,-460.0,0.0001905,2]
[373304819,1752937842405,-692.77,0.0001905,2]
[373304820,1752937842415,-471.9,0.0001905,2]
[373304821,1752937842424,-472.47,0.00019051,2]
[373304822,1752937842434,-4930.92456271,0.00019141,2]
[373304823,1752937842443,-195.79998,0.00019178,2]
[373304824,1752937842453,-460.0,0.00019323,2]
[373304825,1752937842464,-1123.43,0.00019324,2]
[373304826,1752937842473,-1025.34,0.00019324,2]
[373304827,1752937842483,-962.68,0.00019324,2]
[373304828,1752937842493,-973.11,0.00019324,2]
[373304829,1752937842503,-685.5,0.00019324,2]
[373304830,1752937842513,-460.0,0.00019324,2]
[373304831,1752937842522,-460.0,0.00019324,2]
[373304832,1752937842532,-460.0,0.00019324,2]
[373304833,1752937842542,-460.0,0.00019324,2]
[373304834,1752937842552,-692.77,0.00019324,2]
[373304835,1752937842561,-471.9,0.00019324,2]
[373304836,1752937842571,-472.47,0.00019325,2]
[373304837,1752937842582,-189.555472,0.00019349,2]
[373304838,1752937842592,-397.52429419,0.00019376,2]
[373304839,1752937842602,-4930.92456271,0.00019383,2]
[373304840,1752937842614,-1230.7015571,0.00019401,2]
[373304841,1752937842745,-460.0,0.00019597,2]
[373304842,1752937842755,-1123.43,0.00019598,2]
[373304843,1752937842765,-1025.34,0.00019598,2]
[373304844,1752937842775,-962.68,0.00019598,2]
[373304845,1752937842785,-973.11,0.00019598,2]
[373304846,1752937842795,-685.5,0.00019598,2]
[373304848,1752937842804,-460.0,0.00019598,2]
[373304850,1752937842814,-460.0,0.00019598,2]
[373304851,1752937842823,-460.0,0.00019598,2]
[373304852,1752937842833,-460.0,0.00019598,2]
[373304853,1752937842843,-692.77,0.00019598,2]
[373304854,1752937842853,-471.9,0.00019598,2]
[373304855,1752937842862,-472.47,0.00019599,2]
[373304856,1752937842872,-190.76579792,0.00019623,2]
[373304857,1752937842882,-500.0,0.00019623,2]
[373304858,1752937842892,-500.0,0.00019623,2]
[373304859,1752937842902,-500.0,0.00019623,2]
[373304861,1752937842912,-500.0,0.00019623,2]
[373304863,1752937842922,-396.94144046,0.00019623,2]
[373304864,1752937842931,-500.0,0.00019623,2]
[373304865,1752937842941,-500.0,0.00019623,2]
[373304866,1752937842951,-500.0,0.00019623,2]
[373304867,1752937842960,-154.71088185,0.00019623,2]
[373304868,1752937842970,-4930.92456271,0.00019624,2]
[373304869,1752937842980,-4930.92456271,0.00019866,2]
[373304870,1752937842990,-460.0,0.00019871,2]
[373304871,1752937843001,-1123.43,0.00019872,2]
[373304872,1752937843010,-1025.34,0.00019872,2]
[373304873,1752937843020,-962.68,0.00019872,2]
[373304874,1752937843029,-973.11,0.00019872,2]
[373304875,1752937843040,-685.5,0.00019872,2]
[373304876,1752937843049,-460.0,0.00019872,2]
[373304877,1752937843059,-460.0,0.00019872,2]
[373304878,1752937843070,-460.0,0.00019872,2]
[373304879,1752937843079,-460.0,0.00019872,2]
[373304880,1752937843089,-692.77,0.00019872,2]
[373304881,1752937843099,-471.9,0.00019872,2]
[373304882,1752937843109,-472.47,0.00019873,2]
[373304883,1752937843120,-160.0,0.00019905,2]
[373304884,1752937843131,-800.0,0.00019968,2]
[373304885,1752937843140,-500.0,0.00019973,2]
[373304886,1752937843151,-501.4575332,0.00019973,2]
[373304887,1752937843162,-500.0,0.00019973,2]
[373304888,1752937843172,-500.0,0.00019973,2]
[373304889,1752937843181,-86629.29424444,0.0001999,2]
[373304891,1752937843191,-5929.79780296,0.0002,2]
[373304892,1752937843201,-173.416,0.0002,2]
[373304893,1752937843210,-300.40023785,0.0002,2]
[373304894,1752937843220,-457.6,0.00020089,3]
[373304895,1752937843229,-572.02,0.00020089,3]
[373304896,1752937843239,-4930.92456271,0.00020107,2]
[373304897,1752937843248,-460.0,0.00020145,2]
[373304898,1752937843258,-1123.43,0.00020146,2]
[373304899,1752937843268,-1025.34,0.00020146,2]
[373304900,1752937843278,-962.68,0.00020146,2]
[373304901,1752937843287,-973.11,0.00020146,2]
[373304902,1752937843297,-685.5,0.00020146,2]
[373304903,1752937843306,-460.0,0.00020146,2]
[373304904,1752937843316,-178.19,0.00020146,2]
[373304905,1752937843325,-460.0,0.00020146,2]
[373304906,1752937843335,-460.0,0.00020146,2]
[373304907,1752937843344,-692.77,0.00020146,2]
[373304908,1752937843354,-471.9,0.00020146,2]
[373304909,1752937843364,-472.47,0.00020147,2]
[373304910,1752937843374,-410.422483,0.00020187,2]
[373304912,1752937843385,-4930.92456271,0.00020348,3]
[373304913,1752937843394,-460.0,0.00020419,2]
[373304914,1752937843404,-1123.43,0.0002042,2]
[373304915,1752937843415,-1025.34,0.0002042,2]
[373304916,1752937843425,-962.68,0.0002042,2]
[373304917,1752937843435,-973.11,0.0002042,2]
[373304918,1752937843445,-685.5,0.0002042,2]
[373304919,1752937843454,-460.0,0.0002042,2]
[373304920,1752937843464,-460.0,0.0002042,2]
[373304921,1752937843474,-175.7184399,0.0002042,2]
[373304922,1752937843483,-692.77,0.0002042,2]
[373304923,1752937843493,-471.9,0.0002042,2]
[373304924,1752937843503,-472.47,0.00020421,2]
[373304925,1752937843513,-587.0,0.0002043,2]
[373304926,1752937843523,-260.0,0.00020453,2]
[373304927,1752937843533,-1230.70155709,0.00020518,2]
[373304928,1752937843542,-500.0,0.00020521,2]
[373304929,1752937843552,-500.0,0.00020547,2]
[373304930,1752937843562,-500.0,0.00020547,2]
[373304931,1752937843572,-500.0,0.00020547,2]
[373304932,1752937843581,-500.0,0.00020547,2]
[373304933,1752937843591,-500.0,0.00020547,2]
[373304934,1752937843600,-500.0,0.00020547,2]